[Event "44th Chess Olympiad Open 2022"]
[Site "Chennai"]
[Date "2022.07.29"]
[Round "1.5"]
[White "Bartel, Mateusz"]
[Black "Eiti, Bashir"]
[Result "1-0"]
[WhiteElo "2597"]
[BlackElo "2337"]
[Annotator "TA"]
[PlyCount "139"]
[EventDate "2022.??.??"]
[TimeControl "60"]

{[%evp 9,139,58,68,81,103,77,96,75,108,107,102,93,121,58,68,15,13,-9,89,88,76,
65,68,70,93,97,87,75,183,159,166,166,166,157,164,76,95,62,60,68,55,52,102,46,
55,35,58,60,51,59,66,48,39,-2,-22,-19,0,7,14,-19,-19,-486,-48,-39,-56,-53,-47,
-41,-32,-41,352,256,252,253,232,152,145,148,138,139,177,183,183,183,176,176,
176,176,176,159,165,118,123,85,129,159,251,251,235,206,205,222,246,214,287,286,
872,795,619,209,826,733,705,652,1222,1366,6868,5837,5622,5541,2659,1745,1633,
227,29966,29967,29977,29978,29988,29989,29993,29994]} 1. c4 {[%emt 0:00:04]
ChessBase II} Nf6 {[%emt 0:01:30]} 2. Nf3 {[%emt 0:00:57]} c6 {[%emt 0:01:05]}
3. Nc3 {[%emt 0:05:31]} d6 {[%emt 0:03:53]} 4. d4 {[%emt 0:02:06]} Bf5 {
[%emt 0:02:36]} 5. Nh4 {[%emt 0:05:32]} Bg4 {[%emt 0:01:18]} 6. h3 {[%emt 0:00:
00] A53: Old Indian Defence without Nf3.} Bh5 {[%emt 0:02:40]} 7. g3 {[%emt 0:
00:00]} Nbd7 {[%emt 0:04:09]} 8. Bg2 {[%emt 0:00:34] White is better.} e5 {
[%emt 0:07:32]} 9. O-O {[%emt 0:05:15]} Be7 {[%emt 0:05:25] [#]} 10. d5 $146 {
[%emt 0:09:46]} ({Predecessor:} 10. Nf5 O-O 11. Nxe7+ Qxe7 12. b3 Rfe8 13. Ba3
e4 14. Qc1 Qe6 15. d5 cxd5 16. cxd5 {1-0 (41) Biebinger,G (2402)-Mohrlok,D 
(2330) Rheda Wiedenbrueck 2001 EXT 2002 [ChessBase II]}) 10... cxd5 {[%emt 0:
00:00]} 11. cxd5 {[%emt 0:00:00]} ({Much worse is} 11. Nxd5 $6 Nxd5 12. Qxd5 (
12. Bxd5 Bxh4 13. gxh4 Qxh4 $11) 12... Bxh4 13. gxh4 O-O $14) (11. Nf5 $16)
11... O-O $14 {[%emt 0:03:55]} 12. Qb3 {[%emt 0:01:21]} (12. Nf5 $14) 12... Nc5
$11 {[%emt 0:03:17]} 13. Qa3 {[%emt 0:01:04]} Qd7 {[%emt 0:08:11]} (13... a5
$11 {remains equal.}) 14. b4 $16 {[%emt 0:17:50]} Na6 {[%emt 0:00:27]} 15. e4
$1 {[%emt 0:00:59]} Rfc8 {[%emt 0:03:59]} 16. Qb3 {[%emt 0:00:55] Prevents Rc4.
} Rc7 {[%emt 0:16:20]} 17. Be3 {[%emt 0:00:11]} Rac8 {[%emt 0:04:34]} 18. Rfc1
{[%emt 0:00:38]} b5 {[%emt 0:17:47]} (18... g6 $16) 19. Nf5 {[%emt 0:05:58]}
Bf8 {[%emt 0:01:36]} 20. g4 {[%emt 0:00:02]} Bg6 {[%emt 0:03:19]} 21. Bf1 {
[%emt 0:00:20]} Rb7 {[%emt 0:01:05]} 22. f3 {[%emt 0:00:54]} (22. Bxb5 $18 {
and White stays clearly on top.} Rxb5 23. Nxb5 Rxc1+ 24. Rxc1 Bxf5 25. gxf5
Qxb5 26. Qc4) 22... Nc7 {[%emt 0:00:09]} 23. Ne2 {[%emt 0:01:13] White is much
more active.} Bxf5 {[%emt 0:00:10]} 24. gxf5 {[%emt 0:00:10]} Nh5 {[%emt 0:00:
00]} 25. Rc6 {[%emt 0:00:44]} Ne8 {[%emt 0:06:32]} (25... Ra8 $14) 26. Rac1 {
[%emt 0:06:04]} ({Better is} 26. Rxc8 $1 $16 Qxc8 27. Rc1) 26... Rcb8 $14 {
[%emt 0:00:00]} 27. Qc3 {[%emt 0:01:55]} g6 {[%emt 0:00:00]} 28. fxg6 {[%emt 0:
00:00]} hxg6 {[%emt 0:00:00]} 29. Rc8 {[%emt 0:00:05]} Kh7 {[%emt 0:00:00]} 30.
Qc6 {[%emt 0:02:49] Strongly threatening Qxd7.} Qe7 {[%emt 0:00:00]} 31. Rc3 {
[%emt 0:00:03]} Bh6 {[%emt 0:00:00]} 32. Bf2 {[%emt 0:00:34]} Bd2 {[%emt 0:00:
00] White must now prevent ...Rxc8.} 33. Rxb8 {[%emt 0:00:13]} Rxb8 {[%emt 0:
00:00]} 34. Ra3 {[%emt 0:00:04]} Rb7 {[%emt 0:00:00]} 35. Ra5 $2 {[%emt 0:00:
00]} (35. Rb3 $1 $11 {and White has nothing to worry.}) 35... Bxb4 $2 {[%emt 0:
00:00]} (35... Rc7 $1 $19 {[%cal Rc7c6]} 36. Qxb5 Qg5+ 37. Kh2 Bf4+ 38. Kh1 Be3
) 36. Rxb5 $15 {[%emt 0:00:03]} Rc7 {[%emt 0:00:00]} 37. Qa8 {[%emt 0:01:09]}
Bc5 {[%emt 0:00:00]} 38. Bxc5 {[%emt 0:00:08]} dxc5 {[%emt 0:00:00]} 39. Rb8 {
[%emt 0:00:01]} Qg5+ $2 {[%emt 0:00:56]} (39... Nhf6 $15 {keeps the upper hand.
}) 40. Kh1 {[%emt 0:02:25]} Nhf6 {[%emt 0:00:30]} 41. d6 {[%emt 0:35:06]} ({
Worse is} 41. Rxe8 Nxe8 42. Qxe8 Rb7 $11) 41... Rd7 {[%emt 0:30:11]} 42. Rxe8 {
[%emt 0:00:08]} Nxe8 {[%emt 0:00:06]} 43. Qxe8 {[%emt 0:00:06]} Qd8 {[%emt 0:
00:00]} 44. Qxe5 {[%emt 0:00:00]} Qb6 {[%emt 0:00:00]} 45. Nc3 {[%emt 0:00:00]
Nd5 is the strong threat.} Qxd6 {[%emt 0:00:00]} 46. Qxd6 {[%emt 0:00:00]} Rxd6
{[%emt 0:00:00]} 47. Nd5 {[%emt 0:00:00]} Rd8 {[%emt 0:00:00]} 48. Bc4 {
[%emt 0:00:00]} Rb8 {[%emt 0:00:00]} 49. Bb3 {[%emt 0:00:00]} a5 {[%emt 0:00:
00]} 50. Ne3 {[%emt 0:00:00]} ({White should play} 50. Kg2 $18) 50... a4 $16 {
[%emt 0:00:00]} 51. Bd5 {[%emt 0:00:00]} Kg7 {[%emt 0:00:00] [#]} 52. Nc4 $1 {
[%emt 0:00:00] Against Rb2} f5 {[%emt 0:00:00]} (52... Rb1+ $16 53. Kg2 f6) 53.
Kg2 $18 {[%emt 0:00:00]} Rb1 {[%emt 0:00:00]} 54. h4 {[%emt 0:00:00]} fxe4 {
[%emt 0:01:04]} 55. fxe4 {[%emt 0:00:00][%cal Yf3e4,Ye4e5,Ye5e6]} Rc1 {[%emt 0:
01:49]} 56. Kf3 {[%emt 0:00:00]} Kf6 {[%emt 0:01:20]} 57. e5+ {[%emt 0:00:00]}
Kf5 $2 {[%emt 0:00:48]} (57... Ke7 58. Nb6 Rf1+ 59. Kg3 Rd1) 58. e6 {[%emt 0:
00:00]} Kf6 {[%emt 0:01:30]} 59. Ne3 $2 {[%emt 0:00:11]} (59. Nb6) 59... Rh1 $2
{[%emt 0:02:32]} (59... Ke7 60. h5 gxh5 61. Nf5+ Kf6) 60. Kg3 {[%emt 0:01:03]}
Rb1 {[%emt 0:00:36]} 61. Kf4 {[%emt 0:00:00]} Rb4+ {[%emt 0:00:20]} 62. Bc4 {
[%emt 0:00:12] White wants to mate with Nd5+.} Rb8 {[%emt 0:00:42]} 63. Ng4+ {
[%emt 0:00:24]} Ke7 {[%emt 0:00:13]} 64. Ne5 {[%emt 0:00:58] White threatens
Nc6+ and mate.} Rf8+ {[%emt 0:00:46]} 65. Ke4 {[%emt 0:00:44]} Rf6 {[%emt 0:00:
28]} 66. Nd3 $2 {[%emt 0:01:20]} (66. a3 Kd6 {[#]} 67. Ke3 $1) 66... Kd6 $2 {
[%emt 0:00:36]} (66... Rf5 $18 67. Nf4 Rf6) 67. Nf4 {[%emt 0:00:50] White
mates.} Rf5 {[%emt 0:00:30]} 68. Nxg6 {[%emt 0:00:00]} Rf6 {[%emt 0:00:32]} 69.
e7 {[%emt 0:00:30]} Rf1 {[%emt 0:00:30]} 70. Bxf1 {[%emt 0:00:45] Never resign
too early! Weighted Error Value: White=0.39/ Black=0.47} 1-0

[Event "44th Chess Olympiad Open 2022"]
[Site "Chennai"]
[Date "2022.07.29"]
[Round "1.5"]
[White "Koniahli, Malek."]
[Black "Moranda, Wojciech"]
[Result "0-1"]
[WhiteElo "2238"]
[BlackElo "2636"]
[Annotator "TA"]
[PlyCount "94"]
[EventDate "2022.??.??"]
[TimeControl "60"]

{[%evp 10,94,2,11,11,6,4,-3,8,0,14,-6,-6,-6,-4,-2,0,0,0,-4,0,-10,0,-18,0,-11,
-14,-111,-114,-106,-53,-55,-51,-57,-52,-87,-89,-79,-80,-103,-89,-102,-103,-102,
-102,-106,-96,-100,-96,-120,-101,-113,-95,-106,-104,-163,-144,-179,-167,-181,
-164,-278,-270,-415,-308,-372,-394,-528,-304,-373,-368,-417,-406,-405,-389,
-588,-606,-568,-567,-2911,-2682,-4874,-4292,-2000,-2057,-1248,-1209]} 1. c4 {
[%emt 0:00:04]} Nf6 {[%emt 0:00:10]} 2. Nc3 {[%emt 0:00:07]} c5 {[%emt 0:00:22]
} 3. Nf3 {[%emt 0:00:22]} e6 {[%emt 0:00:16]} 4. e3 {[%emt 0:00:39]} d5 {
[%emt 0:00:12]} 5. cxd5 {[%emt 0:00:52]} Nxd5 {[%emt 0:00:08]} 6. d4 {[%emt 0:
00:00]} cxd4 {[%emt 0:00:12] D41: Queen's Gambit Declined: Semi-Tarrasch with
5 cxd5.} (6... Be7 {is more complex.} 7. Bd3 O-O 8. a3 Nxc3 9. bxc3 Nd7) 7.
Nxd5 {[%emt 0:04:20]} (7. exd4 {keeps more tension.} Bb4 8. Bd2 O-O 9. Bd3)
7... Qxd5 {[%emt 0:00:37]} 8. Qxd4 {[%emt 0:00:05]} Qxd4 {[%emt 0:00:48] The
position is equal.} 9. Nxd4 {[%emt 0:00:28]} Bd7 $5 {[%emt 0:00:36] A
promising side line.} 10. Bd2 {[%emt 0:04:41] [#]} Nc6 $146 {[%emt 0:05:21]} ({
Predecessor:} 10... Bd6 11. Be2 e5 12. Nb5 Bxb5 13. Bxb5+ Ke7 14. Ke2 a6 15.
Ba4 b5 16. Bb3 Nd7 {½-½ (41) Muench,W (1644)-Beuschel,U (1375) Nuremberg 2001
}) 11. Nxc6 {[%emt 0:11:01]} Bxc6 {[%emt 0:00:22]} 12. Rc1 {[%emt 0:00:07]} Bd6
{[%emt 0:05:14]} 13. Bc3 {[%emt 0:02:46]} f6 {[%emt 0:13:35]} 14. Bc4 {[%emt 0:
00:00]} Ke7 {[%emt 0:01:42]} ({Don't play} 14... Bxg2 15. Rg1 Bc6 16. Rd1 $14 (
16. Bxe6 Ke7 $11) (16. Rxg7 Bf8 $14)) 15. O-O {[%emt 0:07:22]} Rac8 {[%emt 0:
00:00]} 16. Bb3 {[%emt 0:05:50]} h5 {[%emt 0:11:15]} 17. Rfd1 {[%emt 0:14:17]}
h4 {[%emt 0:02:51]} 18. Rxd6 {[%emt 0:16:10]} Kxd6 $17 {[%emt 0:00:27]} 19.
Bb4+ {[%emt 0:00:14]} Kc7 {[%emt 0:00:46]} (19... Ke5 $17 {aiming for ...Bd5.}
20. f3 Bd5 21. Bc3+ Kd6 22. Bb4+ Kd7 23. Ba4+ Bc6) 20. Bxe6 $15 {[%emt 0:00:18]
} Rcd8 {[%emt 0:01:26]} 21. Bc3 {[%emt 0:02:43]} Kb8 {[%emt 0:03:43]} 22. h3 {
[%emt 0:00:53]} Bd5 {[%emt 0:01:08]} 23. Bxd5 {[%emt 0:02:12]} Rxd5 $17 {
[%emt 0:00:10] Endgame KRR-KRB} 24. Kf1 {[%emt 0:08:23]} Rc8 {[%emt 0:02:56]}
25. Re1 {[%emt 0:00:09]} Re8 {[%emt 0:03:06]} 26. e4 {[%emt 0:00:00]} Rc5 {
[%emt 0:01:03]} 27. f3 {[%emt 0:00:35]} Kc7 {[%emt 0:01:30]} 28. Kf2 {[%emt 0:
00:07]} Kd7 {[%emt 0:01:37]} 29. f4 {[%emt 0:01:37]} Ke6 {[%emt 0:00:00]} 30.
Rd1 {[%emt 0:01:29]} g6 {[%emt 0:08:31]} 31. Kf3 {[%emt 0:07:27]} f5 {[%emt 0:
08:29]} 32. Re1 {[%emt 0:00:00]} (32. Rd4 $17 {keeps fighting.}) 32... Kf7 $19
{[%emt 0:02:04]} 33. e5 {[%emt 0:00:00]} Ke6 {[%emt 0:02:12]} 34. Re3 {[%emt 0:
00:15]} Rd8 {[%emt 0:01:10]} 35. Be1 {[%emt 0:00:52]} (35. g3 $142) 35... Rc2 {
[%emt 0:04:07]} 36. Rb3 {[%emt 0:00:10]} (36. Re2 $142 Rd3+ 37. Kf2) 36... b6 {
[%emt 0:01:39]} 37. Bxh4 {[%emt 0:00:50]} Rd1 {[%emt 0:02:58]} ({Not} 37...
Rdd2 $2 38. Be1 Rxg2 39. Rd3 $19) 38. g4 {[%emt 0:00:30]} Rh2 {[%emt 0:02:24] 
[#] White must now prevent ...Rf1+.} 39. Rc3 {[%emt 0:00:32]} Rxh3+ {[%emt 0:
00:49]} 40. Bg3 {[%emt 0:00:00]} Rd2 {[%emt 0:01:12]} 41. Rc6+ {[%emt 0:00:14]}
Kd7 {[%emt 0:30:35]} 42. Rc3 {[%emt 0:31:07]} (42. Rd6+ $142 Rxd6 43. exd6)
42... Rxb2 {[%emt 0:00:49] Black is clearly winning.} 43. Rd3+ {[%emt 0:00:37]}
Ke7 {[%emt 0:00:15]} 44. a3 {[%emt 0:00:31]} b5 {[%emt 0:00:31]} 45. Rc3 {
[%emt 0:00:21]} a5 {[%emt 0:00:40][%cal Ya7a5,Ya5a4]} 46. Rc7+ {[%emt 0:00:37]}
Kd8 {[%emt 0:00:12]} 47. Rc3 {[%emt 0:00:03]} a4 {[%emt 0:00:13] Weighted
Error Value: White=0.61/Black=0.12 (very precise)} 0-1

[Event "44th Chess Olympiad Open 2022"]
[Site "Chennai"]
[Date "2022.07.29"]
[Round "1.5"]
[White "Chekh Adm Khedr, Aram"]
[Black "Wojtaszek, Radoslaw"]
[Result "0-1"]
[WhiteElo "2147"]
[BlackElo "2708"]
[Annotator "TA"]
[PlyCount "115"]
[EventDate "2022.??.??"]
[TimeControl "60"]

{[%evp 16,115,28,12,20,0,39,35,43,36,52,-91,9,7,0,-7,0,0,-14,-73,0,0,0,0,0,-22,
-21,-21,-25,-27,-12,-20,-13,-12,-18,-30,-28,-87,-87,-119,-108,-120,-102,-142,
-133,-150,-150,-156,-98,-116,-78,-75,-81,-93,-93,-168,-163,-408,-406,-392,-390,
-380,-343,-402,-61,-93,-97,-200,-186,-195,-195,-179,-197,-232,-207,-216,-227,
-214,-178,-244,-244,-244,-244,-244,-237,-221,-196,-256,-256,-256,-256,-256,
-255,-243,-235,-197,-182,-443,-428,-407,-418,-374]} 1. e4 {[%emt 0:00:03]} c5 {
[%emt 0:00:03]} 2. Nf3 {[%emt 0:00:05]} d6 {[%emt 0:00:03]} 3. d4 {[%emt 0:00:
00]} cxd4 {[%emt 0:00:05]} 4. Nxd4 {[%emt 0:00:04]} Nf6 {[%emt 0:00:05]} 5. Nc3
{[%emt 0:00:05]} a6 {[%emt 0:00:04]} 6. Be2 {[%emt 0:00:03]} e6 {[%emt 0:01:05]
} 7. O-O {[%emt 0:05:48]} Qc7 {[%emt 0:00:17]} 8. f4 {[%emt 0:02:05]} Nc6 {
[%emt 0:02:13]} 9. Kh1 {[%emt 0:05:11]} Bd7 {[%emt 0:01:30] B84: Sicilian
Scheveningen: 6 Be2 a6, lines without early Be3.} 10. f5 {[%emt 0:07:52]} Be7 {
[%emt 0:20:22]} 11. fxe6 {[%emt 0:12:23]} fxe6 {[%emt 0:00:06] [#] White is
slightly better.} 12. Bh5+ $146 {[%emt 0:06:35]} ({Predecessor:} 12. Nxc6 Bxc6
13. Bh5+ g6 14. Bg4 Bd7 15. Bg5 O-O 16. Bh6 Rf7 17. Qf3 Bf8 18. Bg5 {½-½ (42)
Sallai,K (2215)-Zoldi,Z (2180) Hungary 2010}) 12... g6 {[%emt 0:00:57]} 13. Bg4
{[%emt 0:06:24]} (13. Nxc6 $14 {stays ahead.} Qxc6 14. Bf3) 13... Nxd4 {
[%emt 0:12:11]} ({Better is} 13... Nxg4 $17 14. Nxc6 Nxh2 15. Kxh2 (15. Qd4 e5
$17) 15... Qxc6) 14. Qxd4 $11 {[%emt 0:00:56]} O-O {[%emt 0:00:10]} 15. Bh3 {
[%emt 0:01:12]} e5 {[%emt 0:11:47]} 16. Qd3 {[%emt 0:02:26] Threatens to win
with Bh6.} Bxh3 {[%emt 0:00:05]} 17. Qxh3 {[%emt 0:00:15] [#]} (17. gxh3 $11
Kg7 18. Be3) 17... Ng4 $1 {[%emt 0:05:26]} 18. Be3 {[%emt 0:09:31]} Rxf1+ {
[%emt 0:04:14]} 19. Rxf1 {[%emt 0:00:05]} Qc4 {[%emt 0:00:35]} 20. Kg1 {
[%emt 0:03:14]} Nxe3 $40 {[%emt 0:01:47] Black attacks.} 21. Qxe3 {[%emt 0:00:
06] And now Nd5 would win.} d5 {[%emt 0:00:04] White must now prevent ...Bc5.}
22. Qd3 $1 {[%emt 0:03:45]} (22. Nxd5 $2 Bc5 23. h3 Bxe3+ $19) 22... Qxd3 {
[%emt 0:01:48]} 23. cxd3 {[%emt 0:00:06] Endgame KRB-KRN} Bc5+ {[%emt 0:00:03]}
24. Kh1 {[%emt 0:00:06]} dxe4 {[%emt 0:00:03]} 25. dxe4 {[%emt 0:00:36]} Bd4 {
[%emt 0:00:05]} 26. Nd5 {[%emt 0:00:23]} (26. Ne2 $11) 26... Bxb2 $17 {[%emt 0:
02:36]} 27. h3 {[%emt 0:10:23]} Rf8 {[%emt 0:02:42]} 28. Rb1 {[%emt 0:01:08]}
Rf2 {[%emt 0:00:17]} 29. Kh2 {[%emt 0:16:26]} h5 {[%emt 0:00:52]} 30. Kg3 {
[%emt 0:01:14]} Rd2 {[%emt 0:00:06]} 31. a4 {[%emt 0:00:00]} Kg7 {[%emt 0:04:
01]} (31... a5 $142 32. Kf3 b5 33. axb5 a4) 32. Kf3 {[%emt 0:00:56]} b5 {
[%emt 0:03:36]} 33. axb5 {[%emt 0:00:18]} axb5 {[%emt 0:00:00][%cal Ya6b5,
Yb5b4]} 34. Nc7 {[%emt 0:02:38]} b4 {[%emt 0:00:03] Black is more active.} 35.
Nd5 {[%emt 0:00:08]} (35. h4 $17) 35... Bd4 $1 $19 {[%emt 0:06:21]} ({Stronger
than} 35... b3 36. Ne3 Rc2 37. Nd1 $11 (37. Nxc2 $2 bxc2 38. Rh1 c1=Q $19)) 36.
h4 $2 {[%emt 0:01:52]} (36. Nxb4 Rf2+ 37. Kg3) 36... Rd3+ $1 {[%emt 0:02:15]}
37. Ke2 {[%emt 0:00:06]} Rg3 {[%emt 0:00:03]} 38. Rxb4 {[%emt 0:00:25]} Rxg2+ {
[%emt 0:00:12]} 39. Kf3 {[%emt 0:00:02]} Rf2+ $2 {[%emt 0:01:11]} (39... Rg4 $1
$19 {has better winning chances. Hoping for . ..Kh6.} 40. Rb7+ Kh6) 40. Kg3 $17
{[%emt 0:00:05][%cal Yb4d4]} Rf7 {[%emt 0:00:00]} 41. Rc4 {[%emt 0:31:03]} (41.
Kh3 $17 {was necessary.}) 41... Bf2+ $19 {[%emt 0:36:56]} 42. Kh3 {[%emt 0:00:
01]} Rf3+ $1 {[%emt 0:00:32]} 43. Kg2 {[%emt 0:00:12] [#]} Rf8 {[%emt 0:00:04]}
44. Kh3 {[%emt 0:00:54]} Ra8 {[%emt 0:00:00]} 45. Rc7+ {[%emt 0:00:44]} Kh6 {
[%emt 0:01:07]} 46. Rc6 {[%emt 0:01:29]} Ra7 {[%emt 0:03:40] Inhibits Ne7.} 47.
Rc2 {[%emt 0:00:36]} (47. Rc3 $142) 47... Be1 {[%emt 0:01:26] ...Ra3+ is the
strong threat.} 48. Re2 {[%emt 0:00:00]} Ra3+ {[%emt 0:00:23]} 49. Re3 {
[%emt 0:00:04] [#]} Ra1 {[%emt 0:00:04]} 50. Rb3 {[%emt 0:00:50]} Ba5 {[%emt 0:
01:37] aiming for ...Bd8.} 51. Kg2 {[%emt 0:00:43]} (51. Ne7 $142) 51... Bd8 {
[%emt 0:01:39]} 52. Rh3 {[%emt 0:00:00]} Re1 {[%emt 0:00:34]} 53. Kf3 {[%emt 0:
00:04]} Rg1 {[%emt 0:00:06] Strongly threatening ...Rg4.} 54. Ne3 {[%emt 0:00:
37] Inhibits Rg4.} Bb6 {[%emt 0:01:44]} 55. Nd5 {[%emt 0:00:57]} Bc5 {[%emt 0:
01:38]} 56. Rg3 $2 {[%emt 0:00:25]} (56. Rh2 {might work better.}) 56... Rh1 {
[%emt 0:01:14]} 57. Rg5 {[%emt 0:00:03]} Bd6 {[%emt 0:00:20]} 58. Rg2 {[%emt 0:
01:10] Weighted Error Value: White=0.35/Black=0.20 (precise)} 0-1

[Event "44th Chess Olympiad Open 2022"]
[Site "Chennai"]
[Date "2022.07.29"]
[Round "1.6"]
[White "Mamedov, Rauf"]
[Black "Nassr, Ali"]
[Result "1-0"]
[WhiteElo "2656"]
[BlackElo "2263"]
[Annotator "TA"]
[PlyCount "83"]
[EventDate "2022.??.??"]
[TimeControl "60"]

{[%evp 13,83,0,0,0,27,25,36,37,42,35,45,13,25,14,32,38,18,0,3,0,0,0,0,0,0,0,12,
0,30,25,26,26,30,0,16,0,13,10,22,41,52,47,57,59,92,86,95,92,135,131,134,134,
185,199,181,82,107,97,143,59,130,114,155,149,149,160,350,345,364,319,347,305]} 
1. e4 {[%emt 0:00:07]} c5 {[%emt 0:00:16]} 2. Nf3 {[%emt 0:00:05]} e6 {[%emt 0:
00:00]} 3. c3 {[%emt 0:00:08]} Nc6 {[%emt 0:00:51]} 4. d4 {[%emt 0:00:21]} cxd4
{[%emt 0:00:15]} 5. cxd4 {[%emt 0:00:14]} d5 {[%emt 0:00:15]} 6. e5 {[%emt 0:
00:00]} Nge7 {[%emt 0:02:48]} 7. Bd3 {[%emt 0:05:41] 7.Nc3 is more fashionable.
} Nf5 {[%emt 0:02:02]} 8. Bc2 {[%emt 0:08:29] C02: French: Advance Variation.}
Be7 {[%emt 0:03:45]} 9. Nc3 {[%emt 0:00:28]} O-O {[%emt 0:05:47]} 10. O-O {
[%emt 0:14:59] [#] White is slightly better.} Nh4 $146 {[%emt 0:03:41]} ({
Predecessor:} 10... a6 11. a3 Bd7 12. Bxf5 exf5 13. Nxd5 Be6 14. Nxe7+ Nxe7 15.
Bg5 h6 16. d5 Bxd5 17. Bxe7 Qxe7 18. Qxd5 {1-0 (31) Rajarshi,D (1873)-Chauhan,
A (1570) Kankarbagh 2015}) 11. Nxh4 {[%emt 0:05:53]} Bxh4 {[%emt 0:00:10]} 12.
Be3 {[%emt 0:00:21]} Be7 {[%emt 0:09:25]} 13. Rc1 {[%emt 0:04:38]} Na5 {
[%emt 0:02:51]} 14. Qg4 {[%emt 0:09:11]} f5 {[%emt 0:09:10]} 15. exf6 {[%emt 0:
00:00]} Bxf6 {[%emt 0:00:00]} 16. b3 {[%emt 0:04:37]} Nc6 {[%emt 0:03:08]} 17.
Qd1 {[%emt 0:03:39]} Bd7 {[%emt 0:06:34]} 18. Na4 {[%emt 0:04:12]} b6 {[%emt 0:
00:00] Inhibits Nc5.} 19. Nc3 {[%emt 0:00:05]} Rc8 {[%emt 0:03:27]} 20. Bb1 {
[%emt 0:00:24]} Ne7 {[%emt 0:09:44]} 21. Qd3 {[%emt 0:00:40]} g6 {[%emt 0:00:
00]} 22. Qd2 {[%emt 0:01:33]} Nc6 {[%emt 0:02:22]} 23. Rfe1 {[%emt 0:03:16]} a6
{[%emt 0:08:27]} 24. Kh1 {[%emt 0:07:05]} b5 {[%emt 0:02:48]} 25. Ne2 {[%emt 0:
00:00][%cal Yc3e2,Ye2g1,Yg1f3,Yf3e5]} Qb6 {[%emt 0:01:06]} 26. Red1 {[%emt 0:
02:04]} Be7 {[%emt 0:05:58]} 27. Ng1 {[%emt 0:03:07]} Ba3 {[%emt 0:00:00]} 28.
Rc2 {[%emt 0:00:17]} (28. Rc3 {feels hotter.} Qa5 29. Bh6 Bb4 30. Bxf8 Bxc3 31.
Qh6) 28... Ne7 {[%emt 0:02:58]} 29. Nf3 {[%emt 0:01:34]} Rxc2 {[%emt 0:01:42]}
30. Bxc2 {[%emt 0:00:03]} Nf5 {[%emt 0:01:23]} 31. Bxf5 {[%emt 0:00:44]} exf5 {
[%emt 0:00:32]} 32. Ne5 {[%emt 0:01:13]} Be6 {[%emt 0:00:00]} (32... Qd6 $16)
33. Bh6 $18 {[%emt 0:06:27]} Rc8 {[%emt 0:00:46] [#]} 34. Qg5 {[%emt 0:00:44]
Inhibits Be7.} (34. b4 $1 $18 {and White stays clearly on top.}) 34... Qd8 {
[%emt 0:01:37]} 35. Qe3 {[%emt 0:00:57][%cal Yb3b4] b4! is the strong threat.}
Bf7 {[%emt 0:00:36]} (35... Qe7 $142) 36. h3 {[%emt 0:00:00]} (36. Nxf7 $16
Kxf7 37. Qe5) 36... Qh4 {[%emt 0:01:51] [#]} ({Black should play} 36... Bd6 $14
) 37. Qd2 $1 $16 {[%emt 0:02:21]} Qe7 {[%emt 0:00:31]} 38. Qa5 {[%emt 0:01:13]}
Ra8 {[%emt 0:00:25]} 39. Qb6 {[%emt 0:01:09] 0x0.001686fe916ddp-1022s more
active pieces.} Be6 $2 {[%emt 0:00:39]} (39... Be8 $16 40. Re1 Bd6) 40. Re1 {
[%emt 0:01:03]} Re8 {[%emt 0:00:32]} 41. Qxa6 {[%emt 0:31:00] Threatens to win
with b4.} Qd6 {[%emt 0:13:23]} 42. Qxb5 {[%emt 0:00:00] Weighted Error Value:
White=0.10 (very precise) /Black=0.24 (precise)} 1-0

[Event "44th Chess Olympiad Open 2022"]
[Site "Chennai"]
[Date "2022.07.29"]
[Round "1.6"]
[White "Durarbayli, Vasif"]
[Black "Djabri, Massinas"]
[Result "1-0"]
[WhiteElo "2638"]
[BlackElo "2206"]
[Annotator "TA"]
[PlyCount "63"]
[EventDate "2022.??.??"]
[TimeControl "60"]

{[%evp 19,63,44,54,52,83,78,74,79,83,77,119,95,89,121,135,127,179,183,200,186,
202,164,558,422,411,413,793,789,1093,1080,988,972,995,521,521,521,521,496,491,
489,1150,587,582,573,515,514]} 1. e4 {[%emt 18:16:55]} c5 {[%emt 0:00:11]} 2.
Nf3 {[%emt 0:00:16]} d6 {[%emt 0:00:07]} 3. d4 {[%emt 0:00:17]} cxd4 {[%emt 0:
00:00]} 4. Nxd4 {[%emt 0:00:09]} Nf6 {[%emt 0:00:06]} 5. Nc3 {[%emt 0:00:06]}
a6 {[%emt 0:00:03]} 6. Be2 {[%emt 0:00:05]} e5 {[%emt 0:00:21]} 7. Nb3 {
[%emt 0:03:34]} Be7 {[%emt 0:00:17]} 8. Be3 {[%emt 0:00:20]} O-O {[%emt 0:00:
00]} 9. g4 {[%emt 0:00:47][%cal Yg2g4,Yg4g5]} Be6 {[%emt 0:02:13]} 10. g5 {
[%emt 0:00:33]} Nfd7 {[%emt 0:01:21]} 11. h4 {[%emt 0:00:26] B92: Sicilian
Najdorf: 6 Be2.} Nb6 {[%emt 0:04:47]} 12. Qd2 {[%emt 0:06:05] White is more
active.} Nc4 {[%emt 0:02:49]} 13. Bxc4 {[%emt 0:01:21] White is better.} Bxc4 {
[%emt 0:00:05] [#]} 14. f4 $146 {[%emt 0:01:26]} ({Predecessor:} 14. O-O-O Nc6
15. Kb1 Rc8 16. Nd5 Bxd5 17. Qxd5 b5 18. c3 b4 19. c4 a5 20. Rdg1 {0-1 (60)
Lopez del Alamo,A (2249)-Karttunen,M (2489) Chess.com INT 2022}) 14... exf4 {
[%emt 0:07:41]} 15. Bxf4 {[%emt 0:01:18]} Nc6 {[%emt 0:00:08]} 16. O-O-O {
[%emt 0:01:38]} Ne5 {[%emt 0:02:28]} 17. Nd4 {[%emt 0:03:34]} Qc7 {[%emt 0:00:
00]} (17... Be6 $16) 18. h5 $18 {[%emt 0:08:05]} Rac8 {[%emt 0:05:57]} 19. Kb1
{[%emt 0:02:00]} Rfd8 {[%emt 0:05:59]} 20. Rdg1 {[%emt 0:04:41]} g6 $2 {
[%emt 0:49:04] [#]} (20... b5 {is more resistant.} 21. g6 fxg6) 21. hxg6 {
[%emt 0:06:19]} fxg6 {[%emt 0:00:07]} 22. Qh2 {[%emt 0:04:40]} Bf8 {[%emt 0:00:
00]} (22... h5 $142 23. gxh6 Bf6) 23. b3 {[%emt 0:00:11] White is clearly
winning.} h5 {[%emt 0:01:50]} 24. gxh6 {[%emt 0:00:18]} Kh7 {[%emt 0:02:41]}
25. Qg3 {[%emt 0:04:44] [#] Hoping for Bxe5.} Qb6 {[%emt 0:02:06]} 26. Nd5 {
[%emt 0:01:40]} Bxd5 {[%emt 0:00:18]} 27. exd5 {[%emt 0:00:21]} Qxd4 {[%emt 0:
00:00]} 28. Bxe5 {[%emt 0:00:13][%csl Gg1][%cal Rg3g6]} Qe4 {[%emt 0:00:17]}
29. Bc3 {[%emt 0:00:09]} Rc5 {[%emt 0:01:35]} (29... Rd7 $142 30. Rh4 (30. Rh2
Rdc7 $16) 30... Rxc3 31. Rxe4 Rxg3 32. Rxg3 Kxh6) 30. Rh4 {[%emt 0:01:19]} Rxc3
{[%emt 0:00:13]} 31. Rxe4 {[%emt 0:00:10]} Rxg3 {[%emt 0:00:06]} 32. Rxg3 {
[%emt 0:00:02] Black got outplayed after the opening. Weighted Error Value:
White=0.64/Black=0.64} 1-0